Cogmind - Beta 13 @@@ ROGUE MODE // 2024.04.13 @ 20:51:02 Player: Dosh Result: Destroyed by S-43 Plague with Heavy Machine Gun Performance ------------- Evolutions (7) 3500 Regions Visited (15) 3000 Robots Destroyed (112) 560 Value Destroyed (4180) 4180 Prototype IDs (45) 900 Alien Tech Used (0) 0 Bonus (854) 854 TOTAL SCORE: 12994 Bonus ------- High Alert Combat Kills 113 Follower Combat Kills 506 Aligned with FarCom 300 Friendly Fire -65 Cogmind --------- Core Integrity 0/1300 Matter 285/300 Energy 99/100 System Corruption 4% Temperature Cool (0) Movement Core (50) Location -3/Research Parts ------- > --- POWER (3) -------- (None) > --- PROPULSION (6) --- (None) > --- UTILITY (10) ----- (None) > --- WEAPON (2) ------- (None) > --- INVENTORY (5) ---- Reinforced Quantum Reactor Nova Cannon Peak State ------------ > --- POWER ------------ Antimatter Reactor Light Quantum Reactor Reinforced Quantum Reactor > --- PROPULSION ------- Flexi-carbon Leg Armored Leg Myomer Leg Myomer Leg Myomer Leg Myomer Leg > --- UTILITY ---------- Experimental Power Amplifier Large Storage Unit Advanced Sensor Array Improved Melee Analysis Suite Improved Melee Analysis Suite Improved Utility Shielding Advanced Powered Armor 7V-RTL's Ultimate Field > --- WEAPON ----------- Great Axe > --- INVENTORY -------- Neutrino Core Light Antimatter Reactor Wheel Advanced Signal Interpreter Improved Utility Shielding Hardened Medium Armor Plating Improved Medium Armor Plating Improved Heavy Armor Plating Improved Trap Extractor HERF Cannon Advanced Plasma Cannon Improved Datajack Remote Datajack [Rating: 117] Favorites ----------- Power Reinforced Quantum Reactor Engine Deuterium Engine Power Core Neutrino Core Reactor Reinforced Quantum Reactor Propulsion Advanced Treads Treads Advanced Treads Leg Armored Leg Wheel Compact Wheel Hover Unit Improved Airjet Flight Unit Xenon Bombardment Thruster Utility Large Storage Unit Device Drone Bay Storage Large Storage Unit Processor Improved Melee Analysis Suite Hackware System Shield Protection Advanced Powered Armor Weapon Great Maul Energy Gun Small Laser Energy Cannon Matter Neutralizer Ballistic Gun Light Assault Rifle Special Weapon Remote Datajack Impact Weapon Great Maul Slashing Weapon Ripper Build | -11 -10 -10 -10 -9 -8 -7 -7 -6 -5 -5 -5 -4 -4 -4 -3 ------- Run | Yrd Mat Min Exi Min Mat Fac Low Fac Fac Upp Upp Fac Upp Upp Res Slots Evolved 14 | . . . . . 4 2 . 2 2 . . 2 . . 2 Power 2 | . . . . . . . . 1 . . . 1 . . . Propulsion 4 | . . . . . 2 . . 1 . . . 1 . . . Utility 8 | . . . . . 2 2 . . 2 . . . . . 2 Weapon . | . . . . . . . . . . . . . . . . Parts Attached 163 | 6 2 7 1 . 31 30 4 17 6 10 3 23 7 . 16 Power 36 | 1 . 2 . . 2 7 2 4 2 3 1 6 2 . 4 Engine 14 | 1 . 1 . . 2 4 2 3 1 . . . . . . Core 11 | . . 1 . . . 3 . 1 1 2 1 2 . . . Reactor 11 | . . . . . . . . . . 1 . 4 2 . 4 Propulsion 58 | 2 . . . . 14 13 1 7 1 2 2 7 3 . 6 Treads 11 | . . . . . 11 . . . . . . . . . . Leg 32 | 2 . . . . 3 5 1 7 1 2 2 7 2 . . Wheel 1 | . . . . . . . . . . . . . 1 . . Hover 10 | . . . . . . 8 . . . . . . . . 2 Flight 4 | . . . . . . . . . . . . . . . 4 Utility 50 | 1 1 3 1 . 9 9 1 3 3 3 . 8 2 . 6 Device 15 | . . 1 . . 1 4 . 1 1 1 . 3 1 . 2 Storage 4 | 1 . . 1 . 2 . . . . . . . . . . Processor 10 | . . . . . 1 3 . 1 2 1 . . 1 . 1 Hackware 1 | . . . . . 1 . . . . . . . . . . Protection 20 | . 1 2 . . 4 2 1 1 . 1 . 5 . . 3 Artifact . | . . . . . . . . . . . . . . . . Weapon 19 | 2 1 2 . . 6 1 . 3 . 2 . 2 . . . Energy Gun 1 | 1 . . . . . . . . . . . . . . . Energy Cannon 2 | . . . . . . . . . . 1 . 1 . . . Ballistic Gun 1 | 1 . . . . . . . . . . . . . . . Ballistic Cannon . | . . . . . . . . . . . . . . . . Launcher . | . . . . . . . . . . . . . . . . Special Weapon 1 | . . . . . . . . 1 . . . . . . . Impact Weapon 10 | . 1 1 . . 6 . . 2 . . . . . . . Slashing Weapon 4 | . . 1 . . . 1 . . . 1 . 1 . . . Piercing Weapon . | . . . . . . . . . . . . . . . . Special Melee Weapon . | . . . . . . . . . . . . . . . . Unidentified Prototypes 3 | . . . . . . 2 . 1 . . . . . . . Corrupted Parts 5 | . . . . . . . 1 . . . 1 . 3 . . System Corruption 28 | . . . . . . . 5 . . . 2 . 21 . . Parts Lost 62 | . . . 2 . 1 6 4 1 . 9 . 10 15 . 14 Power 12 | . . . . . . 1 3 . . 2 . 1 2 . 3 Propulsion 26 | . . . 2 . . 3 . 1 . 3 . 3 8 . 6 Utility 20 | . . . . . 1 2 1 . . 2 . 5 4 . 5 Weapon 4 | . . . . . . . . . . 2 . 1 1 . . Highest Loss Streak 12 | . . . 2 . 1 5 2 1 . 9 . 5 12 . 10 To Critical Strikes 3 | . . . . . . 1 . . . . . 2 . . . Average Slot Usage (%) 83 | . 89 100 95 14 86 95 86 82 77 74 88 92 47 . 9 Engine 3 | . 14 8 . . 6 4 3 6 10 . . . . . . Core 2 | . . 5 13 . . 2 . . . 3 5 5 . . . Reactor 1 | . . . . . . . . . . 3 5 9 6 . . Treads 8 | . . . . . 32 10 . . . . . . . . . Leg 15 | . 28 28 26 . . 4 28 28 23 14 17 28 15 . . Hover 1 | . . . . . . 13 . . . . . . . . 3 Device 3 | . . . . . 2 3 . 5 5 3 5 9 9 . . Storage 5 | . 14 14 13 . 2 7 7 6 5 5 5 4 . . . Processor 14 | . . . . . 8 23 23 13 11 25 29 15 6 . . Hackware 2 | . . . . . 7 5 . . . . . . . . . Protection 6 | . 3 14 13 . 7 1 6 6 5 4 5 9 5 . 1 Impact Weapon 7 | . . 14 13 . 15 10 7 8 11 1 . . . . . Slashing Weapon 5 | . . 12 14 14 1 4 7 3 . 4 5 5 2 . . Naked Turns 116 | . . . . . . . . . . . . . 41 25 50 Heaviest Build 128 | 10 14 19 54 3 37 53 57 67 72 99 99 128 93 . 43 Greatest Support 136 | 20 20 20 20 3 88 88 78 94 77 77 83 136 136 3 37 Greatest Overweight (x) 4 | . . . 4 . 3 2 1 1 1 4 1 1 2 . 1 Average Overweight (x) . | . . . . . . . . . . 1 1 . . . . Largest Inventory Capacity 20 | 8 8 8 20 5 15 15 15 15 15 15 15 15 5 5 5 Average Capacity 12 | 7 8 8 12 5 8 15 15 15 15 15 15 14 5 5 5 Most Carried 15 | 2 5 8 8 5 10 15 14 15 15 15 15 15 5 5 5 Average Carried 9 | 1 2 6 7 5 5 10 11 14 14 13 14 12 4 5 2 Final Capacity 15 | 8 8 8 5 5 15 15 15 15 15 15 15 5 5 5 5 Final Carried 15 | 2 5 7 5 5 10 11 12 15 12 15 14 5 5 5 2 Class Distribution -------------------- 86% | Mutant 10% | Scavenger-Mutant Dominant Class ---------------- Mutant | -10/Materials Mutant | -10/Mines Mutant | -10/Exiles Mutant | -9/Mines Mutant | -8/Materials Mutant | -7/Factory Mutant | -7/Lower Caves Mutant | -6/Factory Mutant | -5/Factory Mutant | -5/Upper Caves Mutant | -5/Upper Caves Scavenger-Mutant | -4/Factory Scavenger-Mutant | -4/Upper Caves Mutant | -4/Upper Caves Mutant | -3/Research Resources | -11 -10 -10 -10 -9 -8 -7 -7 -6 -5 -5 -5 -4 -4 -4 -3 ----------- Run | Yrd Mat Min Exi Min Mat Fac Low Fac Fac Upp Upp Fac Upp Upp Res Matter Collected 1910 | 190 . 101 50 . 310 255 94 213 . 259 19 274 42 . 103 Remotely . | . . . . . . . . . . . . . . . . Salvage Created 4907 | . . 190 50 18 1347 970 317 276 . 544 . 1195 . . . Parts 180 | . . 11 2 3 37 38 8 2 . 12 . 67 . . . Haulers Intercepted 3 | . . . . . . 1 . 2 . . . . . . . Recyclers Shooed 2 | . . . . . . 1 . . . . . 1 . . . Parts Field Recycled . | . . . . . . . . . . . . . . . . Retrieved Matter . | . . . . . . . . . . . . . . . . Parts Self-Destructed 41 | . . . . . . . 23 . . 14 . . 4 . . Prevented 12 | . . . . . . . 3 . . 3 . . 6 . . Kills | -11 -10 -10 -10 -9 -8 -7 -7 -6 -5 -5 -5 -4 -4 -4 -3 ------- Run | Yrd Mat Min Exi Min Mat Fac Low Fac Fac Upp Upp Fac Upp Upp Res Combat Hostiles Destroyed 86 | . . 8 . . 25 14 11 1 . 6 . 21 . . . Melee 64 | . . 7 . . 12 11 10 . . 4 . 20 . . . AOE 4 | . . . . . 4 . . . . . . . . . . Classes Destroyed 16 | . . 2 . 1 7 4 . . . 2 . . . . . Worker 6 | . . . . . 3 1 . 1 . . . 1 . . . Builder 4 | . . . . . 1 2 . . . . . 1 . . . Tunneler 1 | . . . . 1 . . . . . . . . . . . Hauler 3 | . . . . . . 1 . 2 . . . . . . . Recycler 4 | . . . . . . 3 . . . . . 1 . . . Minesweeper 1 | . . . . . . . . . . 1 . . . . . Operator 1 | . . . . . . 1 . . . . . . . . . Watcher 6 | . . . . . 4 1 . . . . . 1 . . . Swarmer 25 | . . 6 . . . 2 8 . . 1 . 8 . . . Grunt 35 | . . 2 . . 17 7 2 1 . 2 . 4 . . . Brawler 1 | . . . . . 1 . . . . . . . . . . Duelist 2 | . . . . . 1 . 1 . . . . . . . . Sentry 5 | . . . . . 5 . . . . . . . . . . Hunter 8 | . . . . . 1 2 . . . . . 5 . . . Programmer 9 | . . . . . . 3 . . . 2 . 4 . . . Packrat 2 | . . . . . . . . . . 2 . . . . . Samaritan 1 | . . . . . . . . . . 1 . . . . . Best Kill Streak 6 | . . 3 . 1 4 5 3 1 . 2 . 6 . . . Combat Bots Only 6 | . . 3 . . 4 5 3 1 . 2 . 6 . . . Max Kills in Single Turn 4 | . . 1 . 1 4 1 1 1 . 1 . 1 . . . Gunslinging . | . . . . . . . . . . . . . . . . Exploded 4 | . . . . . 4 . . . . . . . . . . Melee 1 | . . 1 . . 1 1 1 . . 1 . 1 . . . Uniques/NPCs Destroyed 1 | . . . . . . . . . . 1 . . . . . 7V-RTL (-5/Upper Caves) Combat | -11 -10 -10 -10 -9 -8 -7 -7 -6 -5 -5 -5 -4 -4 -4 -3 -------- Run | Yrd Mat Min Exi Min Mat Fac Low Fac Fac Upp Upp Fac Upp Upp Res Hostile Shots Fired 1595 | . . 35 7 . 80 158 140 77 . 131 . 545 190 8 224 Missed 525 | . . 11 2 . 19 40 43 34 . 35 . 168 67 4 102 Damage Taken 14740 | . 17 229 249 . 1100 1528 1606 547 . 2236 . 2808 1540 75 2805 Core 3549 | . . 23 122 . 119 358 323 52 . 295 . 195 667 75 1320 Absorbed by Shields 5795 | . . . . . . 199 . . . . . 4593 1003 . . Redirected to Shielding 317 | . . . . . . . . . . . . 207 23 . 87 Regen/Repaired (Parts) 282 | . . . . . 282 . . . . . . . . . . Core Remaining (%) 57 | 100 . . . 42 78 . 2 93 . . 70 . . 18 . Volleys Fired 26 | . . . . . . . . 3 . 21 . 2 . . . Largest 1 | . . . . . . . . 1 . 1 . 1 . . . Hottest 105 | . . . . . . . . 5 . 105 . 98 . . . Shots Fired 27 | . . . . . . . . 3 . 20 2 2 . . . Gun . | . . . . . . . . . . . . . . . . Cannon 24 | . . . . . . . . . . 20 2 2 . . . Launcher . | . . . . . . . . . . . . . . . . Special 3 | . . . . . . . . 3 . . . . . . . Kinetic . | . . . . . . . . . . . . . . . . Thermal 24 | . . . . . . . . . . 20 2 2 . . . Explosive . | . . . . . . . . . . . . . . . . Electromagnetic . | . . . . . . . . . . . . . . . . Robot Hit Streak 2 | . . . . . . . . 2 . . . . . . . Robot Miss Streak 1 | . . . . . . . . 1 . . . . . . . Penetration Max . | . . . . . . . . . . . . . . . . Secondary Targets . | . . . . . . . . . . . . . . . . Shots Hit Robots 290 | . . 17 1 1 60 55 22 10 . 42 . 82 . . . Core Hits 91 | . . 6 1 . 16 18 6 . . 9 . 34 . . 1 Critical Kills 3 | . . . . . 1 . 2 . . . . . . . . Critical Parts Destroyed 30 | . . 2 . . 14 4 6 2 . 2 . . . . . Critical Strikes 56 | . . 4 . . 18 8 8 2 . 7 . 9 . . . Smash 34 | . . 2 . . 16 4 8 2 . 2 . . . . . Sever 22 | . . 2 . . 2 4 . . . 5 . 9 . . . Melee Attacks 435 | . . 24 1 1 99 89 47 17 . 56 . 101 . . . Impact 184 | . . 5 . . 89 28 30 17 . 15 . . . . . Slashing 251 | . . 19 1 1 10 61 17 . . 41 . 101 . . . Piercing . | . . . . . . . . . . . . . . . . Sneak Attacks 31 | . . 1 . 1 6 8 . 3 . 7 . 5 . . . Combat Hostiles . | . . . . . . . . . . . . . . . . Follow-up Attacks 39 | . . 4 . . 13 8 9 2 . 2 . 1 . . . Damage Inflicted 13640 | . . 648 65 66 3209 2419 975 549 . 2122 . 3571 . . 16 Guns . | . . . . . . . . . . . . . . . . Cannons . | . . . . . . . . . . . . . . . . Explosions 443 | . . . . . 443 . . . . . . . . . . Melee 13160 | . . 642 65 66 2766 2419 975 549 . 2122 . 3556 . . . Ramming 37 | . . 6 . . . . . . . . . 15 . . 16 Kinetic . | . . . . . . . . . . . . . . . . Thermal 329 | . . . . . 329 . . . . . . . . . . Explosive 114 | . . . . . 114 . . . . . . . . . . Electromagnetic . | . . . . . . . . . . . . . . . . Impact 5152 | . . 103 . . 2505 799 661 549 . 535 . . . . . Slashing 8008 | . . 539 65 66 261 1620 314 . . 1587 . 3556 . . . Piercing . | . . . . . . . . . . . . . . . . Highest Corruption 43 | . . . . . . 10 15 1 1 9 11 15 43 43 4 Average Corruption 10 | . . . . . . 8 13 1 1 8 9 9 26 43 3 Corruption Purged . | . . . . . . . . . . . . . . . . Corruption Blocked . | . . . . . . . . . . . . . . . . Effects 149 | . . . . . . 11 36 . . 59 9 10 17 2 5 Message Errors 33 | . . . . . . 6 10 . . 12 2 . 2 . 1 Matter Fused 40 | . . . . . . 2 7 . . 25 . 1 3 2 . Heat Flow Errors 16 | . . . . . . 1 4 . . 4 2 1 3 . 1 Energy Discharges 12 | . . . . . . . 6 . . 4 . 1 . . 1 Parts Rejected 5 | . . . . . . . . . . 2 . 1 1 . 1 Parts Fused 1 | . . . . . . . . . . 1 . . . . . Data Loss (minor) 19 | . . . . . . 1 6 . . 5 2 3 2 . . Data Loss (major) 7 | . . . . . . . 1 . . 2 1 1 1 . 1 Misfires 2 | . . . . . . . . . . . 2 . . . . Alerts 4 | . . . . . . 1 . . . 3 . . . . . Misdirections 9 | . . . . . . . 2 . . . . 2 5 . . Weapon Failures 1 | . . . . . . . . . . 1 . . . . . Overload Shots . | . . . . . . . . . . . . . . . . Overflow Damage 2875 | . . 142 . 46 960 422 411 341 . 344 . 209 . . . Projectiles . | . . . . . . . . . . . . . . . . Explosions . | . . . . . . . . . . . . . . . . Melee 2875 | . . 142 . 46 960 422 411 341 . 344 . 209 . . . Knockbacks 25 | . . . . . 9 6 2 3 . 5 . . . . . Impact 24 | . . . . . 9 6 2 3 . 4 . . . . . Kinetic . | . . . . . . . . . . . . . . . . Secondary 1 | . . . . . . . . . . 1 . . . . . Self-Inflicted Damage 109 | . . . . . 101 . . . . . . . . . 8 Shots 1 | . . . . . 1 . . . . . . . . . . Rammed 1 | . . . . . . . . . . . . . . . 1 Targets Rammed 6 | . . 3 . . . . . . . . . 2 . . 1 Kicked 5 | . . 3 . . . . . . . . . 2 . . . Crushed . | . . . . . . . . . . . . . . . . Highest Temperature 368 | . . . . . 8 267 220 15 . 368 275 271 221 . 156 Average Temperature 99 | . . . . . 8 151 91 6 . 113 111 90 69 . 94 Received Heat Transfer 1883 | . . 39 . . 414 159 156 192 . 361 . 192 244 . 126 Effects 4 | . . . . . . . . . . 1 . 3 . . . Energy Bleed 2 | . . . . . . . . . . 1 . 1 . . . Interference 2 | . . . . . . . . . . . . 2 . . . Siege Activations . | . . . . . . . . . . . . . . . . Robots Corrupted . | . . . . . . . . . . . . . . . . Combat Hostiles . | . . . . . . . . . . . . . . . . Parts Fried 46 | . . 1 . . 32 4 8 . . 1 . . . . . Impact Corruptions 72 | . . 2 . . 33 9 14 9 . 5 . . . . . Robots Melted . | . . . . . . . . . . . . . . . . Combat Hostiles . | . . . . . . . . . . . . . . . . Parts Melted 1 | . . . . . . 1 . . . . . . . . . Heat Transferred 200 | . . . . . 200 . . . . . . . . . . Parts Sabotaged . | . . . . . . . . . . . . . . . . Parts Stolen . | . . . . . . . . . . . . . . . . Parts Stripped . | . . . . . . . . . . . . . . . . Power Chain Reactions . | . . . . . . . . . . . . . . . . Alert | -11 -10 -10 -10 -9 -8 -7 -7 -6 -5 -5 -5 -4 -4 -4 -3 ------- Run | Yrd Mat Min Exi Min Mat Fac Low Fac Fac Upp Upp Fac Upp Upp Res Peak Influence 517 | . 90 254 . 5 372 464 . 257 81 . . 517 . . 200 Initial 155 | . . 34 . . 1 128 . 123 81 . . . . . 155 Average 165 | . 73 99 . 2 195 193 . 132 81 . . 200 . . 153 Maximum Alert Level 2 | . . 1 . . 1 2 . 1 . . . 2 . . 1 Low Security (%) 66 | 100 100 87 . 100 40 64 . 95 100 . . 57 . . 98 Level 1 28 | . . 12 . . 59 24 . 4 . . . 21 . . 1 Level 2 5 | . . . . . . 10 . . . . . 21 . . . Level 3 . | . . . . . . . . . . . . . . . . Level 4 . | . . . . . . . . . . . . . . . . Level 5 . | . . . . . . . . . . . . . . . . High Security . | . . . . . . . . . . . . . . . . Max Security . | . . . . . . . . . . . . . . . . Squads Dispatched 24 | . 4 1 . . 5 6 . 2 1 . . 4 . . 1 Investigation 12 | . 3 1 . . 5 2 . . 1 . . . . . . Extermination 6 | . . . . . . 2 . 1 . . . 3 . . . Reinforcement 5 | . 1 . . . . 2 . 1 . . . . . . 1 Assault 1 | . . . . . . . . . . . . 1 . . . Garrison . | . . . . . . . . . . . . . . . . Intercept . | . . . . . . . . . . . . . . . . Searches Triggered . | . . . . . . . . . . . . . . . . Construction Impeded . | . . . . . . . . . . . . . . . . Haulers Reinforced . | . . . . . . . . . . . . . . . . Active Scanning Responses . | . . . . . . . . . . . . . . . . Cargo Convoy Interrupts 1 | . . . . . . 1 . . . . . . . . . Stealth | -11 -10 -10 -10 -9 -8 -7 -7 -6 -5 -5 -5 -4 -4 -4 -3 --------- Run | Yrd Mat Min Exi Min Mat Fac Low Fac Fac Upp Upp Fac Upp Upp Res Distress Signals 12 | . . . . . 3 1 . . . . . 6 . . 2 Communications Jammed . | . . . . . . . . . . . . . . . . Distress Signals . | . . . . . . . . . . . . . . . . Times Spotted 222 | . 1 10 9 . 35 38 19 14 . 11 . 41 19 2 23 Peak Tracking Total 11 | . 1 4 11 . 5 9 8 3 . 5 . 7 9 2 9 Tactical Retreats 31 | . . 2 1 . 5 8 3 . . . . 3 6 . 3 Traps | -11 -10 -10 -10 -9 -8 -7 -7 -6 -5 -5 -5 -4 -4 -4 -3 ------- Run | Yrd Mat Min Exi Min Mat Fac Low Fac Fac Upp Upp Fac Upp Upp Res Traps Triggered 7 | . 1 . . . 3 . . . . 1 . . . . 2 Indirectly . | . . . . . . . . . . . . . . . . Trap Hack Attempts . | . . . . . . . . . . . . . . . . Triggered . | . . . . . . . . . . . . . . . . Disarmed . | . . . . . . . . . . . . . . . . Reprogrammed . | . . . . . . . . . . . . . . . . Reused 3 | . . . . . . 3 . . . . . . . . . Traps Extracted . | . . . . . . . . . . . . . . . . Installed 10 | . . . . . . 3 . . . 7 . . . . . Triggered 6 | . . . . . . 3 . . . . 2 . 1 . . Most Traps Carried 3 | . . 3 3 3 3 3 . . . . . . . . . Machines | -11 -10 -10 -10 -9 -8 -7 -7 -6 -5 -5 -5 -4 -4 -4 -3 ---------- Run | Yrd Mat Min Exi Min Mat Fac Low Fac Fac Upp Upp Fac Upp Upp Res Machines Disabled 4 | . . . . . 3 . . 1 . . . . . . . Max in Single Turn 3 | . . . . . 3 . . . . . . . . . . Machines Repaired . | . . . . . . . . . . . . . . . . Machines Dismantled . | . . . . . . . . . . . . . . . . Machines Sabotaged . | . . . . . . . . . . . . . . . . Overloaded Fab Kills . | . . . . . . . . . . . . . . . . Hacking | -11 -10 -10 -10 -9 -8 -7 -7 -6 -5 -5 -5 -4 -4 -4 -3 --------- Run | Yrd Mat Min Exi Min Mat Fac Low Fac Fac Upp Upp Fac Upp Upp Res Machines Accessed 33 | . 4 3 2 . 9 9 . 3 1 1 1 . . . . Terminals 14 | . 2 . . . 6 4 . 1 1 . . . . . . Fabricators 3 | . . . . . . 2 . 1 . . . . . . . Repair Stations 4 | . . . . . 2 2 . . . . . . . . . Recycling Units 2 | . 2 . . . . . . . . . . . . . . Scanalyzers 2 | . . . . . 1 1 . . . . . . . . . Garrison Access 1 | . . . . . . . . 1 . . . . . . . Total Hacks 99 | . 14 3 2 . 46 25 . 5 2 1 1 . . . . Successful 49 | . 8 3 2 . 24 9 . 1 . 1 1 . . . . Failed 50 | . 6 . . . 22 16 . 4 2 . . . . . . Catastrophic 13 | . . . . . 4 7 . 1 1 . . . . . . Database Lockouts . | . . . . . . . . . . . . . . . . Manual 41 | . 13 . 1 . 18 7 . 2 . . . . . . . Terminals 58 | . 11 . . . 30 13 . 2 2 . . . . . . Fabricators 5 | . . . . . . 3 . 2 . . . . . . . Repair Stations 13 | . . . . . 7 6 . . . . . . . . . Recycling Units 3 | . 3 . . . . . . . . . . . . . . Scanalyzers 12 | . . . . . 9 3 . . . . . . . . . Garrison Access 1 | . . . . . . . . 1 . . . . . . . Terminal Hacks 25 | . 6 3 2 . 8 4 . . . 1 1 . . . . Record 1 | . . . 1 . . . . . . . . . . . . Robot Analysis 4 | . 2 . . . 1 1 . . . . . . . . . Prototype ID Bank 9 | . 4 . . . 4 1 . . . . . . . . . Open Door 5 | . . 3 . . . . . . . 1 1 . . . . Branch Access Points 1 | . . . . . . 1 . . . . . . . . . Unreport Threat 1 | . . . . . 1 . . . . . . . . . . Locate Traps 2 | . . . . . 1 1 . . . . . . . . . Zone Layout 1 | . . . . . 1 . . . . . . . . . . Derelict Proto ID Bank 1 | . . . 1 . . . . . . . . . . . . Fabricator Hacks 1 | . . . . . . . . 1 . . . . . . . Network Status 1 | . . . . . . . . 1 . . . . . . . Repair Station Hacks 7 | . . . . . 6 1 . . . . . . . . . Scan Component 4 | . . . . . 3 1 . . . . . . . . . Repair 3 | . . . . . 3 . . . . . . . . . . Recycling Unit Hacks . | . . . . . . . . . . . . . . . . Scanalyzer 11 | . . . . . 9 2 . . . . . . . . . Insert Component 5 | . . . . . 4 1 . . . . . . . . . Analyze 6 | . . . . . 5 1 . . . . . . . . . Garrison Access Hacks . | . . . . . . . . . . . . . . . . Unauthorized Hacks 5 | . 2 . . . 1 2 . . . . . . . . . Terminals 3 | . . . . . 1 2 . . . . . . . . . Botnet 3 | . . . . . 1 2 . . . . . . . . . Fabricators . | . . . . . . . . . . . . . . . . Repair Stations . | . . . . . . . . . . . . . . . . Recycling Units 2 | . 2 . . . . . . . . . . . . . . Tunnel 2 | . 2 . . . . . . . . . . . . . . Scanalyzers . | . . . . . . . . . . . . . . . . Garrison Access . | . . . . . . . . . . . . . . . . Data Cores Recovered . | . . . . . . . . . . . . . . . . Used . | . . . . . . . . . . . . . . . . Hacking Detections 21 | . 1 . . . 7 9 . 3 1 . . . . . . Full Trace Events 8 | . 1 . . . 4 2 . . 1 . . . . . . Feedback Events 1 | . . . . . . . . . 1 . . . . . . Corruption 1 | . . . . . . . . . 1 . . . . . . Feedback Blocked 1 | . . . . . 1 . . . . . . . . . . Robot Schematics Acquired . | . . . . . . . . . . . . . . . . Robots Built . | . . . . . . . . . . . . . . . . Authchips . | . . . . . . . . . . . . . . . . Time . | . . . . . . . . . . . . . . . . Total Robot Build Rating . | . . . . . . . . . . . . . . . . Part Schematics Acquired 5 | . . . . . 4 1 . . . . . . . . . Parts Built . | . . . . . . . . . . . . . . . . Authchips . | . . . . . . . . . . . . . . . . Time . | . . . . . . . . . . . . . . . . Total Part Build Rating . | . . . . . . . . . . . . . . . . Parts Repaired 3 | . . . . . 3 . . . . . . . . . . Time 120 | . . . . . 120 . . . . . . . . . . Parts Recycled . | . . . . . . . . . . . . . . . . Recycled Matter . | . . . . . . . . . . . . . . . . Retrieved Matter . | . . . . . . . . . . . . . . . . Retrieved Components . | . . . . . . . . . . . . . . . . Parts Scanalyzed 5 | . . . . . 4 1 . . . . . . . . . Part Schematics Acquired 5 | . . . . . 4 1 . . . . . . . . . Parts Damaged . | . . . . . . . . . . . . . . . . Bothacking | -11 -10 -10 -10 -9 -8 -7 -7 -6 -5 -5 -5 -4 -4 -4 -3 ------------ Run | Yrd Mat Min Exi Min Mat Fac Low Fac Fac Upp Upp Fac Upp Upp Res Used RIF Installer . | . . . . . . . . . . . . . . . . Robots Hacked 1 | . . . . . . . . 1 . . . . . . . Non-combat . | . . . . . . . . . . . . . . . . Combat 1 | . . . . . . . . 1 . . . . . . . Robot Hacks Applied 1 | . . . . . . . . 1 . . . . . . . parse_system 1 | . . . . . . . . 1 . . . . . . . Relay Couplers Released . | . . . . . . . . . . . . . . . . Fabnet Peak Effective % . | . . . . . . . . . . . . . . . . Robots Rewired . | . . . . . . . . . . . . . . . . Allies Hacked 1 | . . . . . . . . . . 1 . . . . . Hacks Repelled . | . . . . . . . . . . . . . . . . Allies | -11 -10 -10 -10 -9 -8 -7 -7 -6 -5 -5 -5 -4 -4 -4 -3 -------- Run | Yrd Mat Min Exi Min Mat Fac Low Fac Fac Upp Upp Fac Upp Upp Res Total Allies 1 | . . . . . . . 1 . . . . . . . . Largest Group 1 | . . . . . . . 1 1 1 1 . . . . . Highest-Rated Group 180 | . . . . . . . 180 180 172 172 . . . . . Highest-Rated Ally 180 | . . . . . . . 180 180 172 172 . . . . . Total Orders 15 | . . . . . . . . 2 . 10 2 . . . 1 EXPLORE 11 | . . . . . . . . 2 . 6 2 . . . 1 RETURN 4 | . . . . . . . . . . 4 . . . . . Ally Attacks 46 | . . . . . . . . 29 . 17 . . . . . Total Damage 1738 | . . . . . . . . 1095 . 643 . . . . . Kills 16 | . . . . . . . . 11 . 5 . . . . . Allies Corrupted . | . . . . . . . . . . . . . . . . Allies Melted . | . . . . . . . . . . . . . . . . Intel | -11 -10 -10 -10 -9 -8 -7 -7 -6 -5 -5 -5 -4 -4 -4 -3 ------- Run | Yrd Mat Min Exi Min Mat Fac Low Fac Fac Upp Upp Fac Upp Upp Res Robot Analysis Total 4 | . 2 . . . 1 1 . . . . . . . . . Derelict Logs Recovered 7 | . . 1 . 1 . . 1 . . 3 . . 1 . . Drone Launches 13 | . . . . . . . . 2 . 7 2 . . . 2 Drone Recoveries 10 | . . . . . . . . 2 . 7 . . . . 1 Exploration | -11 -10 -10 -10 -9 -8 -7 -7 -6 -5 -5 -5 -4 -4 -4 -3 ------------- Run | Yrd Mat Min Exi Min Mat Fac Low Fac Fac Upp Upp Fac Upp Upp Res Turns Passed 10644 | 67 149 787 494 84 2265 1104 989 957 128 1763 221 1057 286 25 268 Spaces Moved 6521 | 50 119 577 356 162 1157 824 577 607 68 644 109 415 323 49 484 Core 775 | 4 . . 54 162 232 . . . . . . . 165 49 109 Treads 1143 | . . . . . 887 256 . . . . . . . . . Legs 3755 | 46 119 577 302 . 38 96 577 607 68 644 109 415 157 . . Wheels 1 | . . . . . . . . . . . . . 1 . . Hover 638 | . . . . . . 472 . . . . . . . . 166 Flight 209 | . . . . . . . . . . . . . . . 209 Fastest Speed 37 | 50 120 120 50 50 50 38 120 120 120 120 194 120 50 50 37 Average Speed 129 | 114 120 120 136 50 146 90 130 140 177 213 195 163 84 50 49 Slowest Speed 400 | 120 120 120 260 50 200 190 190 190 190 400 196 195 190 50 106 Overloaded Moves . | . . . . . . . . . . . . . . . . Propulsion Burnouts . | . . . . . . . . . . . . . . . . Robots Hopped . | . . . . . . . . . . . . . . . . Cave-ins Triggered . | . . . . . . . . . . . . . . . . Exploration Rate (%) 41 | 4 25 98 70 40 73 24 66 24 4 94 43 11 53 12 23 Regions Visited 15 Branch Regions 8 Pre-discovered Areas 4 | . 2 1 1 . . . . . . . . . . . . Known Exits Taken 2 | . . . . . . 1 . . . 1 . . . . . Unknown Exits Taken 13 | 1 1 1 1 1 1 . 1 1 1 . 1 1 1 1 . Scrap Searched 17 | . . 2 . 2 . . 11 . . . 1 . 1 . . Spaces Dug 29 | . . . . . 11 5 2 2 . 6 . 3 . . . Terrain Destroyed 85 | . . . . . 48 5 2 2 . 22 2 4 . . . Melee 24 | . . . . . 11 5 2 2 . 2 . 2 . . . Projectile 24 | . . . . . . . . . . 20 2 2 . . . AOE 37 | . . . . . 37 . . . . . . . . . . Terrain Rammed . | . . . . . . . . . . . . . . . . Walls Destroyed . | . . . . . . . . . . . . . . . . Machines Disabled . | . . . . . . . . . . . . . . . . Actions | -11 -10 -10 -10 -9 -8 -7 -7 -6 -5 -5 -5 -4 -4 -4 -3 --------- Run | Yrd Mat Min Exi Min Mat Fac Low Fac Fac Upp Upp Fac Upp Upp Res Total 8026 | 57 124 642 364 162 1569 1067 745 686 75 914 116 615 333 48 509 Wait 793 | . . 24 . . 275 100 129 24 . 170 5 63 . . 3 Move 6506 | 49 118 576 355 161 1156 823 576 606 67 643 108 414 322 48 484 Hop . | . . . . . . . . . . . . . . . . Pick Up 57 | 2 4 6 1 . 8 11 3 9 . 5 . 4 1 . 3 Fast Attach 74 | 6 . . . . 19 12 1 6 1 8 1 6 4 . 10 Attach 34 | . 1 . . . 2 9 2 1 3 2 1 5 2 . 6 Detach 22 | . . . 1 . 2 13 . 1 . . . 2 2 . 1 Swap 55 | . 1 7 1 . 10 9 1 10 2 . 1 12 1 . . Drop 68 | . . 7 5 . 18 15 . 13 2 . . 6 1 . 1 Fire 26 | . . . . . . . . 3 . 21 . 2 . . . Melee 370 | . . 19 1 1 79 72 33 13 . 53 . 99 . . . Ram 1 | . . . . . . . . . . . . . . . 1 Kick 5 | . . 3 . . . . . . . . . 2 . . . Crush . | . . . . . . . . . . . . . . . . Escape Stasis . | . . . . . . . . . . . . . . . . Rewire 5 | . . . . . . . . . . 5 . . . . . Trap 10 | . . . . . . 3 . . . 7 . . . . . Miscellaneous . | . . . . . . . . . . . . . . . . Route ------- -11/Scrapyard -10/Materials -10/Mines (discovered 3 exits: [*Mat x2] / *Exi) -10/Exiles -9/Mines -8/Materials (discovered 2 exits: *Fac x2) -7/Factory (discovered 2 exits: *Low x2) -7/Lower Caves -6/Factory (discovered 2 exits: *Fac / [*Low]) -5/Factory -5/Upper Caves -5/Upper Caves -4/Factory -4/Upper Caves -4/Upper Caves -3/Research History --------- Turn | Location | Event 2 | -11/Scrapyard | Discovered new exit (range 16) 68 | -11/Scrapyard | Entered Materials 160 | -10/Materials | Discovered new exit (range 15) 217 | -10/Materials | Entered Mines 270 | -10/Mines | A weapon hastily lodged in a ceiling crevice suddenly fell to the ground 321 | -10/Mines | Build established: Mutant 505 | -10/Mines | Discovered new exit (range 9) 574 | -10/Mines | Found the Drone Emporium 577 | -10/Mines | Learned Materials security intel 677 | -10/Mines | Met a Derelict shopkeep closing up shop 742 | -10/Mines | Discovered new exit (range 8) 755 | -10/Mines | Met a Derelict who couldn't figure out how to use a Trap Extractor 838 | -10/Mines | Found a hidden stash of uninstalled traps 908 | -10/Mines | Learned location of Storage (-9) 998 | -10/Mines | Deemed a non-threat by the Exiles lab entrance 999 | -10/Mines | Discovered new exit (range 5) 1004 | -10/Mines | Entered Exiles 1034 | -10/Exiles | Met 8R-AWN 1055 | -10/Exiles | Met EX-HEX 1086 | -10/Exiles | Met EX-BIN 1100 | -10/Exiles | Aligned with FarCom system 1102 | -10/Exiles | Given EX-Vault access code 1129 | -10/Exiles | Opened EX-Vault 1139 | -10/Exiles | Found Modified TNC 1165 | -10/Exiles | Warned to stay clear of 0b10 Research branches 1200 | -10/Exiles | Met EX-DEC 1205 | -10/Exiles | Learned location of Zion (-6) 1245 | -10/Exiles | Discovered new exit (range 12) 1466 | -10/Exiles | Attacked by the Exiles 1479 | -10/Exiles | Core integrity fell below 50% 1498 | -10/Exiles | Left Exiles lab with Modified TNC 1498 | -10/Exiles | Entered Mines 1545 | -9/Mines | Learned Materials terminal intel 1567 | -9/Mines | Discovered new exit (range 9) 1582 | -9/Mines | Entered Materials 1582 | -8/Materials | Evolved 4 slots: Propulsion x2, Utility x2 1584 | -8/Materials | Loaded intel: 12 terminal locations 2930 | -8/Materials | Repaired Adv. Treads 3035 | -8/Materials | Discovered new exit (range 5) 3246 | -8/Materials | Discovered new exit (range 18) 3335 | -8/Materials | Repaired Adv. Treads 3791 | -8/Materials | Repaired Ripper 3847 | -8/Materials | Entered Factory 3847 | -7/Factory | Evolved 2 slots: Utility x2 4162 | -7/Factory | Identified exit to Lower Caves 4612 | -7/Factory | Cargo convoy interrupted 4716 | -7/Factory | System corruption reached 10% 4770 | -7/Factory | Lost 5 parts (3n2u) 4777 | -7/Factory | Core integrity fell below 50% 4951 | -7/Factory | Entered Lower Caves 5349 | -7/Lower Caves | Spotted B-75 Beast 5488 | -7/Lower Caves | Learned Factory trap positions 5732 | -7/Lower Caves | Attracted the attention of an 0b10 outpost 5746 | -7/Lower Caves | Core integrity fell below 20% 5762 | -7/Lower Caves | Encountered a Warlord checkpoint 5829 | -7/Lower Caves | Lost 3 allies 5929 | -7/Lower Caves | 7V-RTL showed up to help 5931 | -7/Lower Caves | 7V-RTL revealed a hidden path 5940 | -7/Lower Caves | Entered Factory 5940 | -6/Factory | Accompanied by 1 ally (7V-RTL) 5940 | -6/Factory | Evolved 2 slots: Power x1, Propulsion x1 5941 | -6/Factory | Loaded intel: 95 trap records 6156 | -6/Factory | Discovered new exit (range 32) 6317 | -6/Factory | Found Adv. Powered Armor 6842 | -6/Factory | Discovered new exit (range 6) 6897 | -6/Factory | Entered another Factory area 6897 | -5/Factory | Accompanied by 1 ally (7V-RTL) 6897 | -5/Factory | Evolved 2 slots: Utility x2 7015 | -5/Factory | Discovered new exit (range 8) 7025 | -5/Factory | Entered Upper Caves 7025 | -5/Upper Caves | Accompanied by 1 ally (7V-RTL) 7029 | -5/Upper Caves | Identified exit to Upper Caves 7153 | -5/Upper Caves | P-70 Sage assimilated allied 7V-RTL 7217 | -5/Upper Caves | Found Adv. Powered Armor 7230 | -5/Upper Caves | Found 7V-RTL's Ultimate Field 7251 | -5/Upper Caves | Lost 9 parts (2p3n2u2w) 7290 | -5/Upper Caves | Destroyed 7V-RTL 7707 | -5/Upper Caves | Learned Factory garrison access intel 7774 | -5/Upper Caves | Learned Factory stockpile data 8788 | -5/Upper Caves | Entered another Upper Caves area 8866 | -5/Upper Caves | Discovered new exit (range 21) 9008 | -5/Upper Caves | System corruption reached 10% 9009 | -5/Upper Caves | Entered Factory 9009 | -4/Factory | Evolved 2 slots: Power x1, Propulsion x1 9011 | -4/Factory | Loaded intel: 4 garrison access locations 9074 | -4/Factory | Discovered new exit (range 6) 9469 | -4/Factory | Lost 3 parts (1n1u1w) 9770 | -4/Factory | Build established: Scavenger-Mutant 9786 | -4/Factory | First assault squad dispatched 9952 | -4/Factory | System corruption reached 10% 10015 | -4/Factory | Lost 5 parts (1n4u) 10066 | -4/Factory | Entered Upper Caves 10237 | -4/Upper Caves | System corruption reached 30% 10285 | -4/Upper Caves | Lost 12 parts (2p5n4u1w) 10329 | -4/Upper Caves | Core integrity fell below 50% 10348 | -4/Upper Caves | Discovered new exit (range 10) 10352 | -4/Upper Caves | Entered another Upper Caves area 10374 | -4/Upper Caves | Discovered new exit (range 7) 10375 | -4/Upper Caves | Core integrity fell below 20% 10377 | -4/Upper Caves | Entered Research 10377 | -3/Research | Evolved 2 slots: Utility x2 10519 | -3/Research | Build established: Mutant 10519 | -3/Research | Spotted B-86 Titan 10538 | -3/Research | Core integrity fell below 50% 10539 | -3/Research | Lost 10 parts (3p3n4u) 10606 | -3/Research | Core integrity fell below 20% 10623 | -3/Research | Spotted B-86 Titan 10645 | -3/Research | Destroyed by S-43 Plague with Heavy Machine Gun Last Messages --------------- 10578_ System corrupted: Heat flow error (+198). 10582_ Acquired Nova Cannon. 10596_ #L4Q1G3SLW, 0QCPHRI